[Event "Late-Titled-Tuesday-Blitz-September-19-2023"]
[Site "Chess.com"]
[Date "2023.09.19"]
[Round "4"]
[White "NotFischer"]
[Black "2346PL"]
[Result "0-1"]
[WhiteElo "2258"]
[BlackElo "2479"]
[TimeControl "180+1"]
[EndTime "14:36:58 PDT"]
[Termination "2346PL won by checkmate"]

1. e4 {[%clk 0:03:00.9]} 1... d6 {[%clk 0:02:54.3]} 2. d4 {[%clk 0:03:00.4]}
2... Nf6 {[%clk 0:02:54.5]} 3. Nc3 {[%clk 0:03:00.5]} 3... e5 {[%clk 0:02:54.9]}
4. Nf3 {[%clk 0:02:57.9]} 4... Nbd7 {[%clk 0:02:54.6]} 5. g3 {[%clk 0:02:56.1]}
5... Be7 {[%clk 0:02:53.1]} 6. Bg2 {[%clk 0:02:55.7]} 6... O-O {[%clk
0:02:53.8]} 7. O-O {[%clk 0:02:55.4]} 7... c6 {[%clk 0:02:54.5]} 8. a4 {[%clk
0:02:54.4]} 8... a5 {[%clk 0:02:53.8]} 9. h3 {[%clk 0:02:53.9]} 9... Re8 {[%clk
0:02:53.8]} 10. Re1 {[%clk 0:02:52.7]} 10... Qc7 {[%clk 0:02:52.3]} 11. Be3
{[%clk 0:02:48.3]} 11... Bf8 {[%clk 0:02:49.2]} 12. Kh2 {[%clk 0:02:47.3]} 12...
b6 {[%clk 0:02:42]} 13. d5 {[%clk 0:02:41.9]} 13... cxd5 {[%clk 0:02:41.6]} 14.
Nxd5 {[%clk 0:02:36.9]} 14... Nxd5 {[%clk 0:02:41.2]} 15. exd5 {[%clk
0:02:37.8]} 15... h6 {[%clk 0:02:37.8]} 16. Nh4 {[%clk 0:02:36.5]} 16... g6
{[%clk 0:02:36.7]} 17. Qd2 {[%clk 0:02:29.1]} 17... Kh7 {[%clk 0:02:36.4]} 18.
g4 {[%clk 0:02:16.8]} 18... Bg7 {[%clk 0:02:27.2]} 19. g5 {[%clk 0:02:09.4]}
19... hxg5 {[%clk 0:02:19.1]} 20. Bxg5 {[%clk 0:02:09]} 20... f6 {[%clk
0:02:19.6]} 21. Be3 {[%clk 0:02:07.1]} 21... f5 {[%clk 0:02:17.1]} 22. f4 {[%clk
0:02:00.9]} 22... e4 {[%clk 0:01:57.1]} 23. Bd4 {[%clk 0:01:58.8]} 23... Bxd4
{[%clk 0:01:33.9]} 24. Qxd4 {[%clk 0:01:58.3]} 24... Qc5 {[%clk 0:01:34.6]} 25.
Qd2 {[%clk 0:01:46.8]} 25... Nf6 {[%clk 0:01:34.5]} 26. Rad1 {[%clk 0:01:43.4]}
26... Bd7 {[%clk 0:01:32.5]} 27. b3 {[%clk 0:01:41.2]} 27... Rac8 {[%clk
0:01:25.9]} 28. c4 {[%clk 0:01:40.8]} 28... Nh5 {[%clk 0:01:20.3]} 29. Nxg6
{[%clk 0:01:11.2]} 29... Kxg6 {[%clk 0:01:18.4]} 30. Rg1 {[%clk 0:01:11.2]}
30... Kh6 {[%clk 0:01:09.6]} 31. Bxe4 {[%clk 0:01:00.5]} 31... Rxe4 {[%clk
0:01:04.3]} 32. Rg5 {[%clk 0:01:00.2]} 32... Nxf4 {[%clk 0:00:54.6]} 33. Rg2
{[%clk 0:00:55]} 33... Rg8 {[%clk 0:00:38.7]} 34. Rdg1 {[%clk 0:00:54.8]} 34...
Rxg2+ {[%clk 0:00:37]} 35. Rxg2 {[%clk 0:00:54.7]} 35... Kh7 {[%clk 0:00:36.9]}
36. Qd1 {[%clk 0:00:43.5]} 36... Qe3 {[%clk 0:00:32]} 37. h4 {[%clk 0:00:14.2]}
37... Qh3+ {[%clk 0:00:29.6]} 38. Kg1 {[%clk 0:00:14.6]} 38... Qxg2# {[%clk
0:00:30.5]} 0-1

[Event "Late-Titled-Tuesday-Blitz-September-19-2023"]
[Site "Chess.com"]
[Date "2023.09.19"]
[Round "4"]
[White "miraitrunks"]
[Black "HalfIsCrayfish"]
[Result "0-1"]
[WhiteElo "2138"]
[BlackElo "2568"]
[TimeControl "180+1"]
[EndTime "14:36:59 PDT"]
[Termination "HalfIsCrayfish won by resignation"]

1. e4 {[%clk 0:02:56.5]} 1... c5 {[%clk 0:02:53.8]} 2. c3 {[%clk 0:02:53.5]}
2... e6 {[%clk 0:02:52.3]} 3. d4 {[%clk 0:02:53.2]} 3... cxd4 {[%clk 0:02:52.8]}
4. cxd4 {[%clk 0:02:53.8]} 4... d5 {[%clk 0:02:53.5]} 5. e5 {[%clk 0:02:54.2]}
5... Nc6 {[%clk 0:02:51.8]} 6. Nf3 {[%clk 0:02:54.5]} 6... Bd7 {[%clk
0:02:50.7]} 7. Nc3 {[%clk 0:02:54.7]} 7... Qb6 {[%clk 0:02:50.3]} 8. Bd3 {[%clk
0:02:54.2]} 8... Nxd4 {[%clk 0:02:37.8]} 9. Nxd4 {[%clk 0:02:54.6]} 9... Qxd4
{[%clk 0:02:37.7]} 10. Qe2 {[%clk 0:02:47.1]} 10... Bb4 {[%clk 0:02:29]} 11. O-O
{[%clk 0:02:38.4]} 11... Ne7 {[%clk 0:02:27.6]} 12. Bg5 {[%clk 0:01:56.1]} 12...
Ng6 {[%clk 0:02:20.1]} 13. Rfd1 {[%clk 0:01:55.3]} 13... Qxe5 {[%clk 0:02:04.3]}
14. Qg4 {[%clk 0:01:32.4]} 14... Bxc3 {[%clk 0:01:57.5]} 15. bxc3 {[%clk
0:01:30.1]} 15... O-O {[%clk 0:01:58]} 16. h4 {[%clk 0:00:55.9]} 16... f5 {[%clk
0:01:35.9]} 17. Qb4 {[%clk 0:00:46.6]} 17... Bc6 {[%clk 0:01:21.7]} 18. Re1
{[%clk 0:00:44.1]} 18... Qc7 {[%clk 0:01:14.3]} 19. Rxe6 {[%clk 0:00:43.5]}
19... Rae8 {[%clk 0:00:55.3]} 20. Rae1 {[%clk 0:00:42.9]} 20... Rxe6 {[%clk
0:00:53.2]} 21. Rxe6 {[%clk 0:00:43.8]} 21... Qf7 {[%clk 0:00:53.2]} 22. Re2
{[%clk 0:00:34.5]} 22... Re8 {[%clk 0:00:48.5]} 23. Rxe8+ {[%clk 0:00:25.9]}
23... Bxe8 {[%clk 0:00:45.1]} 24. c4 {[%clk 0:00:20.1]} 24... Ne5 {[%clk
0:00:36.5]} 25. Bc2 {[%clk 0:00:17.3]} 25... Nxc4 {[%clk 0:00:35.8]} 26. Qc5
{[%clk 0:00:11.2]} 26... h6 {[%clk 0:00:34.2]} 27. Bd8 {[%clk 0:00:07.7]} 27...
a6 {[%clk 0:00:32.5]} 28. g3 {[%clk 0:00:08.2]} 28... Bc6 {[%clk 0:00:31.4]} 29.
Qxd5 {[%clk 0:00:07]} 29... Qxd5 {[%clk 0:00:30.8]} 0-1

[Event "Late-Titled-Tuesday-Blitz-September-19-2023"]
[Site "Chess.com"]
[Date "2023.09.19"]
[Round "4"]
[White "Taran2004"]
[Black "FrancescoSorcinelli"]
[Result "1-0"]
[WhiteElo "2431"]
[BlackElo "2128"]
[TimeControl "180+1"]
[EndTime "14:37:04 PDT"]
[Termination "Taran2004 won by resignation"]

1. e4 {[%clk 0:02:56.5]} 1... g6 {[%clk 0:03:00]} 2. d4 {[%clk 0:02:55.8]} 2...
Bg7 {[%clk 0:03:00.6]} 3. Nf3 {[%clk 0:02:56]} 3... d6 {[%clk 0:03:01.2]} 4. Nc3
{[%clk 0:02:56.3]} 4... a6 {[%clk 0:03:01.3]} 5. Be3 {[%clk 0:02:56.5]} 5... b5
{[%clk 0:03:01.2]} 6. a4 {[%clk 0:02:53.9]} 6... b4 {[%clk 0:02:59.4]} 7. Ne2
{[%clk 0:02:54.2]} 7... Bb7 {[%clk 0:02:54.9]} 8. Ng3 {[%clk 0:02:54.5]} 8...
Nf6 {[%clk 0:02:51.9]} 9. Bd3 {[%clk 0:02:54.3]} 9... O-O {[%clk 0:02:51.3]} 10.
h4 {[%clk 0:02:52.9]} 10... Ng4 {[%clk 0:02:38.7]} 11. Bf4 {[%clk 0:02:43.2]}
11... e5 {[%clk 0:02:36.2]} 12. dxe5 {[%clk 0:02:33.6]} 12... Nxe5 {[%clk
0:02:21.2]} 13. Nxe5 {[%clk 0:02:30.4]} 13... dxe5 {[%clk 0:02:20.8]} 14. Bg5
{[%clk 0:02:30.7]} 14... Bf6 {[%clk 0:02:00.6]} 15. Bh6 {[%clk 0:02:25.7]} 15...
Bg7 {[%clk 0:01:42.8]} 16. Qd2 {[%clk 0:02:24.5]} 16... Nc6 {[%clk 0:01:26.9]}
17. h5 {[%clk 0:02:20.8]} 17... Qf6 {[%clk 0:01:20]} 18. O-O-O {[%clk
0:02:14.3]} 18... Rad8 {[%clk 0:01:17.2]} 19. Bg5 {[%clk 0:02:06.1]} 19... Qe6
{[%clk 0:01:17]} 20. Bxd8 {[%clk 0:02:01.4]} 20... Rxd8 {[%clk 0:01:17.9]} 21.
b3 {[%clk 0:01:57.1]} 21... a5 {[%clk 0:00:42.7]} 22. Qg5 {[%clk 0:01:54.6]}
22... Rd4 {[%clk 0:00:22.1]} 23. Nf5 {[%clk 0:01:34.7]} 23... gxf5 {[%clk
0:00:16.8]} 24. h6 {[%clk 0:01:34.1]} 24... Qg6 {[%clk 0:00:09.6]} 25. Qxg6
{[%clk 0:01:34.2]} 25... hxg6 {[%clk 0:00:09.8]} 26. hxg7 {[%clk 0:01:34.5]}
26... fxe4 {[%clk 0:00:08.4]} 27. Bc4 {[%clk 0:01:27.1]} 27... Kxg7 {[%clk
0:00:08.5]} 28. Rhe1 {[%clk 0:01:21.7]} 28... f5 {[%clk 0:00:08.6]} 29. Rxd4
{[%clk 0:01:17.1]} 29... exd4 {[%clk 0:00:06.9]} 30. Bd5 {[%clk 0:01:16.6]}
30... Kf6 {[%clk 0:00:07]} 31. f3 {[%clk 0:01:15.5]} 31... Ke5 {[%clk
0:00:06.5]} 32. fxe4 {[%clk 0:01:15.2]} 32... f4 {[%clk 0:00:07]} 33. Rh1 {[%clk
0:01:08]} 33... Nd8 {[%clk 0:00:06.6]} 34. Bxb7 {[%clk 0:01:03.4]} 34... Nxb7
{[%clk 0:00:07.5]} 35. Rh7 {[%clk 0:01:02.5]} 35... Nc5 {[%clk 0:00:06.8]} 36.
Rxc7 {[%clk 0:00:59.4]} 36... Nxe4 {[%clk 0:00:07]} 37. Re7+ {[%clk 0:00:58.6]}
37... Kf5 {[%clk 0:00:07.1]} 38. Ra7 {[%clk 0:00:55.7]} 38... g5 {[%clk
0:00:04.4]} 39. Rxa5+ {[%clk 0:00:53.3]} 39... Kg4 {[%clk 0:00:05]} 40. Re5
{[%clk 0:00:53.2]} 40... Nc3 {[%clk 0:00:02.1]} 41. a5 {[%clk 0:00:52.3]} 41...
Kg3 {[%clk 0:00:02.6]} 42. Rxg5+ {[%clk 0:00:51]} 42... Kf2 {[%clk 0:00:03.1]}
43. a6 {[%clk 0:00:50.7]} 43... d3 {[%clk 0:00:02]} 44. cxd3 {[%clk 0:00:49.9]}
1-0

[Event "Late-Titled-Tuesday-Blitz-September-19-2023"]
[Site "Chess.com"]
[Date "2023.09.19"]
[Round "4"]
[White "Harald_Schmidt"]
[Black "Mops_2004"]
[Result "1/2-1/2"]
[WhiteElo "2330"]
[BlackElo "2799"]
[TimeControl "180+1"]
[EndTime "14:37:06 PDT"]
[Termination "Game drawn by agreement"]

1. e4 {[%clk 0:02:59.7]} 1... g6 {[%clk 0:03:00.5]} 2. d4 {[%clk 0:02:58.4]}
2... Bg7 {[%clk 0:03:01.2]} 3. Nc3 {[%clk 0:02:58.5]} 3... d6 {[%clk 0:03:01.8]}
4. f4 {[%clk 0:02:55.6]} 4... Nf6 {[%clk 0:03:01.2]} 5. Nf3 {[%clk 0:02:54.9]}
5... c5 {[%clk 0:03:01.7]} 6. dxc5 {[%clk 0:02:53.1]} 6... Qa5 {[%clk
0:03:01.2]} 7. Bd2 {[%clk 0:02:48.7]} 7... Qxc5 {[%clk 0:02:58.9]} 8. Bb5+
{[%clk 0:02:47.2]} 8... Nc6 {[%clk 0:02:44.9]} 9. Qe2 {[%clk 0:02:45.6]} 9...
O-O {[%clk 0:02:43.4]} 10. a3 {[%clk 0:02:35.3]} 10... Bg4 {[%clk 0:02:39.4]}
11. Be3 {[%clk 0:02:29.5]} 11... Qh5 {[%clk 0:02:38.6]} 12. h3 {[%clk
0:02:25.4]} 12... Bxf3 {[%clk 0:02:30.6]} 13. Qxf3 {[%clk 0:02:24.7]} 13... Qxf3
{[%clk 0:02:30.3]} 14. gxf3 {[%clk 0:02:24.4]} 14... Nh5 {[%clk 0:02:17.1]} 15.
Nd1 {[%clk 0:02:16.2]} 15... Nd4 {[%clk 0:02:11.7]} 16. Bxd4 {[%clk 0:02:12.6]}
16... Bxd4 {[%clk 0:02:11.2]} 17. f5 {[%clk 0:02:12.3]} 17... gxf5 {[%clk
0:02:08.8]} 18. exf5 {[%clk 0:02:10]} 18... Ng3 {[%clk 0:02:07.7]} 19. Rh2
{[%clk 0:02:09.2]} 19... Nxf5 {[%clk 0:02:07.6]} 20. Bd3 {[%clk 0:02:06.8]}
20... Nh4 {[%clk 0:02:02.6]} 21. Ke2 {[%clk 0:02:06.3]} 21... Ng6 {[%clk
0:02:00.2]} 22. c3 {[%clk 0:02:03.2]} 22... Be5 {[%clk 0:01:52.6]} 23. Rh1
{[%clk 0:02:01.1]} 23... Nf4+ {[%clk 0:01:47.4]} 24. Kd2 {[%clk 0:02:00.4]}
24... Nxd3 {[%clk 0:01:45.4]} 25. Kxd3 {[%clk 0:01:59.9]} 25... f5 {[%clk
0:01:35]} 26. Ne3 {[%clk 0:01:58.9]} 26... e6 {[%clk 0:01:35.1]} 27. Nc4 {[%clk
0:01:50.6]} 27... Bf4 {[%clk 0:01:34.5]} 28. Rae1 {[%clk 0:01:46.3]} 28... Kf7
{[%clk 0:01:34.4]} 29. Na5 {[%clk 0:01:39.7]} 29... b6 {[%clk 0:01:17.3]} 30.
Nc6 {[%clk 0:01:38.6]} 30... Rg8 {[%clk 0:01:07.3]} 31. Rhg1 {[%clk 0:01:37.7]}
31... Bh2 {[%clk 0:00:59.7]} 32. Rxg8 {[%clk 0:01:35.8]} 32... Rxg8 {[%clk
0:01:00.6]} 33. Nxa7 {[%clk 0:01:33.7]} 33... Rg3 {[%clk 0:01:00.4]} 34. Ke3
{[%clk 0:01:31.6]} 34... e5 {[%clk 0:00:53.6]} 35. Nc8 {[%clk 0:01:28.3]} 35...
e4 {[%clk 0:00:48.3]} 36. Rf1 {[%clk 0:01:26.2]} 36... Rxh3 {[%clk 0:00:44.8]}
37. Nxb6 {[%clk 0:01:25.1]} 37... Ke6 {[%clk 0:00:42.5]} 38. a4 {[%clk
0:01:23.1]} 38... d5 {[%clk 0:00:26.4]} 39. a5 {[%clk 0:01:18.6]} 39... Bc7
{[%clk 0:00:23.6]} 40. Ke2 {[%clk 0:01:16.9]} 40... f4 {[%clk 0:00:20.6]} 41. c4
{[%clk 0:01:06.6]} 41... Rh2+ {[%clk 0:00:17.5]} 42. Rf2 {[%clk 0:01:05.9]}
42... Rxf2+ {[%clk 0:00:17.7]} 43. Kxf2 {[%clk 0:01:05.5]} 43... e3+ {[%clk
0:00:17.9]} 44. Ke2 {[%clk 0:01:05]} 44... dxc4 {[%clk 0:00:13.8]} 45. Nxc4
{[%clk 0:01:03.3]} 45... Kd5 {[%clk 0:00:11.6]} 46. Nxe3+ {[%clk 0:01:02.4]}
46... fxe3 {[%clk 0:00:10]} 47. Kxe3 {[%clk 0:01:02.6]} 47... Bxa5 {[%clk
0:00:09.8]} 1/2-1/2

[Event "Late-Titled-Tuesday-Blitz-September-19-2023"]
[Site "Chess.com"]
[Date "2023.09.19"]
[Round "4"]
[White "slorovel"]
[Black "dzilleruelo"]
[Result "1-0"]
[WhiteElo "2502"]
[BlackElo "2334"]
[TimeControl "180+1"]
[EndTime "14:37:07 PDT"]
[Termination "slorovel won on time"]

1. e4 {[%clk 0:03:00.9]} 1... c6 {[%clk 0:02:59.8]} 2. d4 {[%clk 0:02:56.6]}
2... d5 {[%clk 0:03:00.7]} 3. e5 {[%clk 0:02:56.5]} 3... c5 {[%clk 0:03:00.9]}
4. c4 {[%clk 0:02:56.4]} 4... cxd4 {[%clk 0:03:00.6]} 5. Nf3 {[%clk 0:02:53.6]}
5... Nc6 {[%clk 0:02:57.4]} 6. Nxd4 {[%clk 0:02:53.5]} 6... e6 {[%clk
0:02:52.9]} 7. Nxc6 {[%clk 0:02:48.4]} 7... bxc6 {[%clk 0:02:52.6]} 8. Nc3
{[%clk 0:02:45.5]} 8... Bb4 {[%clk 0:02:48.2]} 9. cxd5 {[%clk 0:02:43.3]} 9...
Bxc3+ {[%clk 0:02:48.2]} 10. bxc3 {[%clk 0:02:43.2]} 10... exd5 {[%clk
0:02:46.6]} 11. Bd3 {[%clk 0:02:40.5]} 11... Ne7 {[%clk 0:02:46.3]} 12. Qh5
{[%clk 0:02:35.2]} 12... g6 {[%clk 0:02:19.1]} 13. Qh6 {[%clk 0:02:32.6]} 13...
Bf5 {[%clk 0:02:19.2]} 14. Be2 {[%clk 0:02:25.1]} 14... Qc7 {[%clk 0:02:03.8]}
15. Bf4 {[%clk 0:02:23.3]} 15... Qd7 {[%clk 0:01:51.3]} 16. O-O {[%clk 0:02:18]}
16... Bg4 {[%clk 0:00:38.1]} 17. f3 {[%clk 0:02:03.3]} 17... Be6 {[%clk
0:00:26.2]} 18. Bg5 {[%clk 0:02:00.3]} 18... Nf5 {[%clk 0:00:23.1]} 19. Qh3
{[%clk 0:01:58.4]} 19... Ne3 {[%clk 0:00:15.6]} 20. Qg3 {[%clk 0:01:57.8]} 20...
Nxf1 {[%clk 0:00:15.6]} 21. Rxf1 {[%clk 0:01:56.7]} 21... h6 {[%clk 0:00:12.6]}
22. Bf6 {[%clk 0:01:56.8]} 22... Rh7 {[%clk 0:00:12.9]} 23. f4 {[%clk
0:01:54.8]} 23... Rb8 {[%clk 0:00:11.3]} 24. h4 {[%clk 0:01:46.2]} 24... Bf5
{[%clk 0:00:10.1]} 25. h5 {[%clk 0:01:45.4]} 25... Rb1 {[%clk 0:00:10.1]} 26.
Rxb1 {[%clk 0:01:42]} 26... Bxb1 {[%clk 0:00:11]} 27. hxg6 {[%clk 0:01:41.2]}
27... Bxg6 {[%clk 0:00:11.6]} 28. Bg4 {[%clk 0:01:40.3]} 28... Qb7 {[%clk
0:00:07.1]} 29. f5 {[%clk 0:01:36.4]} 29... Qb1+ {[%clk 0:00:07.1]} 30. Kh2
{[%clk 0:01:32.6]} 30... Bxf5 {[%clk 0:00:03]} 31. Bxf5 {[%clk 0:01:32.7]} 31...
Qxf5 {[%clk 0:00:03.7]} 32. Qg8+ {[%clk 0:01:33]} 32... Kd7 {[%clk 0:00:04.2]}
33. Qb8 {[%clk 0:01:32]} 33... Qh5+ {[%clk 0:00:03.1]} 34. Kg1 {[%clk
0:01:31.4]} 34... Qd1+ {[%clk 0:00:03.7]} 35. Kf2 {[%clk 0:01:31]} 35... Qd2+
{[%clk 0:00:03.8]} 36. Kf3 {[%clk 0:01:29.6]} 36... Qd3+ {[%clk 0:00:04.2]} 37.
Kf4 {[%clk 0:01:24.6]} 37... Qe4+ {[%clk 0:00:04.3]} 38. Kg3 {[%clk 0:01:24.8]}
38... Qe3+ {[%clk 0:00:04.8]} 39. Kh2 {[%clk 0:01:24.4]} 39... Qf4+ {[%clk
0:00:05.4]} 40. Kh3 {[%clk 0:01:22.6]} 40... Qe3+ {[%clk 0:00:05.5]} 41. g3
{[%clk 0:01:22.5]} 41... Rh8 {[%clk 0:00:02]} 42. Qd6+ {[%clk 0:01:20.3]} 42...
Kc8 {[%clk 0:00:01.8]} 43. Qxc6+ {[%clk 0:01:20.7]} 43... Kb8 {[%clk 0:00:02.3]}
44. Qd6+ {[%clk 0:01:18.2]} 44... Ka8 {[%clk 0:00:02.7]} 45. Qxd5+ {[%clk
0:01:18.1]} 45... Kb8 {[%clk 0:00:03.2]} 46. Bxh8 {[%clk 0:01:17.4]} 46... Qg5
{[%clk 0:00:02.6]} 47. Qd6+ {[%clk 0:01:07.6]} 47... Kb7 {[%clk 0:00:02.7]} 48.
Qd7+ {[%clk 0:01:04.5]} 48... Kb6 {[%clk 0:00:01.5]} 49. Qg4 {[%clk 0:01:03.2]}
49... Qd2 {[%clk 0:00:01.1]} 50. Qd4+ {[%clk 0:01:02.8]} 1-0

[Event "Late-Titled-Tuesday-Blitz-September-19-2023"]
[Site "Chess.com"]
[Date "2023.09.19"]
[Round "4"]
[White "louis198"]
[Black "Chessdreamer2020"]
[Result "0-1"]
[WhiteElo "2671"]
[BlackElo "2531"]
[TimeControl "180+1"]
[EndTime "14:37:08 PDT"]
[Termination "Chessdreamer2020 won by checkmate"]

1. d4 {[%clk 0:03:00.5]} 1... d6 {[%clk 0:03:00]} 2. Bf4 {[%clk 0:03:00.2]} 2...
g6 {[%clk 0:02:59.4]} 3. e3 {[%clk 0:03:00.4]} 3... Bg7 {[%clk 0:02:59.8]} 4.
Nf3 {[%clk 0:03:00.8]} 4... Nd7 {[%clk 0:03:00]} 5. h3 {[%clk 0:03:00.7]} 5...
e5 {[%clk 0:03:00.4]} 6. Bh2 {[%clk 0:03:01.4]} 6... Qe7 {[%clk 0:03:00.4]} 7.
Be2 {[%clk 0:03:01.4]} 7... Nh6 {[%clk 0:03:00.9]} 8. O-O {[%clk 0:03:01.5]}
8... O-O {[%clk 0:03:01.4]} 9. c4 {[%clk 0:03:02]} 9... c6 {[%clk 0:03:01.8]}
10. Nc3 {[%clk 0:03:02.2]} 10... f5 {[%clk 0:03:02.2]} 11. Rc1 {[%clk
0:02:51.6]} 11... Nf7 {[%clk 0:03:01.4]} 12. b4 {[%clk 0:02:51.3]} 12... e4
{[%clk 0:03:01.8]} 13. Nd2 {[%clk 0:02:51.7]} 13... g5 {[%clk 0:03:01.9]} 14. a4
{[%clk 0:02:49.9]} 14... Nf6 {[%clk 0:02:55.9]} 15. c5 {[%clk 0:02:48.3]} 15...
d5 {[%clk 0:02:55.6]} 16. b5 {[%clk 0:02:48.8]} 16... Be6 {[%clk 0:02:30.3]} 17.
a5 {[%clk 0:02:48.3]} 17... g4 {[%clk 0:01:49.7]} 18. a6 {[%clk 0:02:45.4]}
18... gxh3 {[%clk 0:01:46.7]} 19. gxh3 {[%clk 0:02:45.2]} 19... Ng5 {[%clk
0:01:35.9]} 20. Kg2 {[%clk 0:02:43.8]} 20... f4 {[%clk 0:01:35.9]} 21. Bxf4
{[%clk 0:02:43.5]} 21... Bxh3+ {[%clk 0:01:36]} 22. Kh1 {[%clk 0:02:41.4]} 22...
Bxf1 {[%clk 0:01:32.3]} 23. Qxf1 {[%clk 0:02:41.2]} 23... h6 {[%clk 0:01:27]}
24. Bd6 {[%clk 0:02:40.9]} 24... Qd7 {[%clk 0:01:18.7]} 25. axb7 {[%clk
0:02:40.4]} 25... Qxb7 {[%clk 0:01:17.5]} 26. bxc6 {[%clk 0:02:40.3]} 26... Qxc6
{[%clk 0:01:17.9]} 27. Bb5 {[%clk 0:02:39.7]} 27... Qc8 {[%clk 0:01:17.7]} 28.
Bxf8 {[%clk 0:02:39]} 28... Bxf8 {[%clk 0:01:13.2]} 29. Qg2 {[%clk 0:02:36]}
29... Qf5 {[%clk 0:01:09]} 30. Ba6 {[%clk 0:02:17]} 30... Kh7 {[%clk 0:01:04.1]}
31. c6 {[%clk 0:02:16.7]} 31... Bd6 {[%clk 0:01:02.6]} 32. Nb5 {[%clk
0:02:15.5]} 32... Nf3 {[%clk 0:00:45.6]} 33. Nxf3 {[%clk 0:01:21.7]} 33... exf3
{[%clk 0:00:45.5]} 34. Nxd6 {[%clk 0:01:21.9]} 34... fxg2+ {[%clk 0:00:44]} 35.
Kxg2 {[%clk 0:01:22.7]} 35... Rg8+ {[%clk 0:00:42]} 36. Kf1 {[%clk 0:01:22]}
36... Qf3 {[%clk 0:00:25.9]} 37. Rc2 {[%clk 0:01:09.3]} 37... Rg2 {[%clk
0:00:19.3]} 38. c7 {[%clk 0:01:03.1]} 38... Ng4 {[%clk 0:00:17.9]} 39. Bd3+
{[%clk 0:00:59.7]} 39... Kg7 {[%clk 0:00:16.7]} 40. Nf5+ {[%clk 0:01:00]} 40...
Kf6 {[%clk 0:00:15.6]} 41. c8=Q {[%clk 0:00:40.5]} 41... Rxf2+ {[%clk
0:00:15.6]} 42. Ke1 {[%clk 0:00:40.8]} 42... Qh1+ {[%clk 0:00:15.8]} 43. Bf1
{[%clk 0:00:39.5]} 43... Qxf1# {[%clk 0:00:15.6]} 0-1

[Event "Late-Titled-Tuesday-Blitz-September-19-2023"]
[Site "Chess.com"]
[Date "2023.09.19"]
[Round "4"]
[White "Championnn-9"]
[Black "rychessmaster1"]
[Result "0-1"]
[WhiteElo "2500"]
[BlackElo "2736"]
[TimeControl "180+1"]
[EndTime "14:37:10 PDT"]
[Termination "rychessmaster1 won on time"]

1. d4 {[%clk 0:03:00]} 1... Nf6 {[%clk 0:03:00]} 2. c4 {[%clk 0:02:58.5]} 2...
e6 {[%clk 0:03:00.4]} 3. a3 {[%clk 0:02:57.1]} 3... b6 {[%clk 0:02:53.3]} 4. Nc3
{[%clk 0:02:56.7]} 4... Bb7 {[%clk 0:02:53.2]} 5. Qc2 {[%clk 0:02:50.3]} 5... d5
{[%clk 0:02:48.4]} 6. e3 {[%clk 0:02:48.3]} 6... Be7 {[%clk 0:02:45.5]} 7. Nf3
{[%clk 0:02:48.1]} 7... O-O {[%clk 0:02:42.8]} 8. Be2 {[%clk 0:02:45.3]} 8... c5
{[%clk 0:02:38.3]} 9. O-O {[%clk 0:02:44.5]} 9... cxd4 {[%clk 0:02:18.7]} 10.
Nxd4 {[%clk 0:02:38.4]} 10... Nbd7 {[%clk 0:02:04.3]} 11. Rd1 {[%clk 0:02:24.5]}
11... Rc8 {[%clk 0:02:03.3]} 12. b3 {[%clk 0:02:17.5]} 12... Qc7 {[%clk
0:01:59.2]} 13. Bb2 {[%clk 0:02:12.2]} 13... Rfd8 {[%clk 0:01:55.8]} 14. Rac1
{[%clk 0:02:08.8]} 14... Qb8 {[%clk 0:01:37.4]} 15. Qb1 {[%clk 0:02:02.8]} 15...
h6 {[%clk 0:01:29]} 16. cxd5 {[%clk 0:01:54.3]} 16... Nxd5 {[%clk 0:01:28.3]}
17. Nxd5 {[%clk 0:01:52.5]} 17... Bxd5 {[%clk 0:01:29.2]} 18. Qa1 {[%clk
0:01:27.9]} 18... Bf6 {[%clk 0:01:22.9]} 19. Ba6 {[%clk 0:01:21.9]} 19... Rxc1
{[%clk 0:01:20.6]} 20. Rxc1 {[%clk 0:01:22.8]} 20... Nc5 {[%clk 0:01:19.3]} 21.
Bf1 {[%clk 0:01:20.9]} 21... Bxd4 {[%clk 0:01:15.5]} 22. Bxd4 {[%clk 0:01:13.6]}
22... Nxb3 {[%clk 0:01:15.8]} 23. Qb2 {[%clk 0:01:13.2]} 23... Nxd4 {[%clk
0:01:07.4]} 24. exd4 {[%clk 0:01:11.9]} 24... Qf4 {[%clk 0:01:05.6]} 25. Qc3
{[%clk 0:01:06.9]} 25... g6 {[%clk 0:00:57.8]} 26. Qc7 {[%clk 0:01:01.3]} 26...
Qd6 {[%clk 0:00:39.7]} 27. Rc3 {[%clk 0:00:42.2]} 27... Kg7 {[%clk 0:00:38.1]}
28. h3 {[%clk 0:00:24.3]} 28... Rd7 {[%clk 0:00:35.3]} 29. Qc8 {[%clk
0:00:17.9]} 29... Bb7 {[%clk 0:00:32.8]} 30. Qe8 {[%clk 0:00:16.6]} 30... Rc7
{[%clk 0:00:31.9]} 31. Rg3 {[%clk 0:00:12.7]} 31... Qxd4 {[%clk 0:00:28.6]} 32.
Qb5 {[%clk 0:00:02.8]} 32... Rc1 {[%clk 0:00:24.4]} 0-1